[Event "Swiss Championship U16 2022"]
[Site "Biel"]
[Date "2022.07.19"]
[Round "3.2"]
[White "Kasipour Azbari, Seyed Arvin"]
[Black "Erne, Raphael"]
[Result "1-0"]
[ECO "B11"]
[WhiteElo "1944"]
[BlackElo "2060"]
[Annotator "TA"]
[PlyCount "85"]
[EventDate "2022.07.18"]
[EventType "swiss"]
[EventCountry "SUI"]
[SourceTitle "playchess.com"]
[Source "ChessBase"]
[SourceQuality "1"]
[TimeControl "5400+30"]

{[%evp 9,85,12,28,24,31,18,30,0,0,-27,24,15,26,28,36,33,58,54,66,54,73,92,132,114,124,118,187,180,280,285,383,381,396,418,522,504,520,370,352,351,341,350,553,544,968,968,956,948,1000,564,795,715,706,701,1050,1048,1299,1285,2317,1768,1838,1779,1641,1616,2487,2461,300,2503,2181,1239,1764,1764,1646,1122,1562,1557,1562,1435]} 1. e4 {[%emt 0:00:32][%cal Be2e4,Be4e5][%mdl 32]} c6 {[%emt 0:00:05]} 2. Nf3 {[%emt 0:00:05]} d5 {[%emt 0:00:07]} 3. Nc3 {[%emt 0:00:04]} Nf6 {[%emt 0:02:15]} 4. e5 {[%emt 0:00:17]} Ne4 {[%emt 0:00:05]} 5. Ne2 {[%emt 0:00:08]} Qb6 {[%emt 0:00:07][%csl Ge4][%cal Rb6f2] [#]} 6. d4 $1 {[%emt 0:00:07] B11: Caro-Kann: Two Knights Variation.} e6 {[%emt 0:00:33]} 7. Ng3 $1 {[%emt 0:01:33] 7.Ng3 scores better than 7.Nfg1.} c5 {[%emt 0:00:26]} 8. Bd3 {[%emt 0:00:39] White has an edge.} Nxg3 $1 {[%emt 0:03:26]} 9. fxg3 {[%emt 0:00:03]} h6 {[%emt 0:11:41]} (9... cxd4 $142 10. O-O Nc6) 10. O-O $11 {[%emt 0:00:50][%cal Od3g6] White wants to play Bg6! Active counter play!} Nc6 {[%emt 0:03:13]} 11. dxc5 {[%emt 0:00:07]} Bxc5+ {[%emt 0:01:00]} 12. Kh1 {[%emt 0:00:14]} Bd7 {[%emt 0:06:01]} 13. c3 {[%emt 0:03:54] Against Nb4} a5 {[%emt 0:10:44] [#]} 14. Qc2 $146 {[%emt 0:09:00]} (14. Qe2 O-O-O 15. Bd2 Qc7 16. b4 Bb6 17. Rfc1 Kb8 18. Rab1 g5 19. b5 Ne7 20. c4) ({Predecessor:} 14. Qe2 O-O-O 15. Bd2 Qc7 16. b4 Bb6 17. Rfc1 Kb8 18. Rab1 g5 19. b5 Ne7 20. c4 {1-0 (30) Tuncer,T (2342)-Tuna,A (2253) Manavgat 2018}) 14... Rc8 {[%emt 0:04:09]} 15. Qe2 {[%emt 0:09:05] White stays focused until the end.} d4 {[%emt 0:13:35]} (15... Kf8) 16. Nh4 {[%emt 0:12:41]} g5 {[%emt 0:11:28]} 17. Nf3 {[%emt 0:06:16][%cal Bh4f3,Bf3d2,Bd2e4][%mdl 32]} dxc3 {[%emt 0:02:53]} (17... a4 $16 {was worth a try.}) 18. bxc3 $18 {[%emt 0:00:43]} Ne7 {[%emt 0:00:42]} (18... Qc7 19. Bb2 Kf8) (18... Qc7 {was called for.} 19. Bb2 Kf8) 19. Nd2 {[%emt 0:04:23]} Nd5 {[%emt 0:05:28]} 20. Ne4 {[%emt 0:06:28]} Be7 {[%emt 0:03:06]} 21. Qh5 {[%emt 0:05:33]} Kd8 {[%emt 0:06:32]} 22. Rb1 {[%emt 0:08:08]} Qc6 {[%emt 0:03:17]} 23. Bb5 {[%emt 0:06:22]} Qxb5 {[%emt 0:01:24]} 24. Rxb5 {[%emt 0:00:11]} Bxb5 {[%emt 0:00:04]} 25. Rd1 {[%emt 0:02:10]} ({Weaker is} 25. Rxf7 Be8 $18) ({Less strong is} 25. Qxf7 Bxf1 26. Qxf1 Rc6 $14) 25... Ke8 {[%emt 0:00:49] [#]} (25... Be8 $142 26. Qf3 Rc4) 26. Bxg5 $1 {[%emt 0:02:15][%mdl 512]} Be2 {[%emt 0:02:03]} (26... Rc4 27. Nd6+) 27. Qxe2 {[%emt 0:00:43]} hxg5 {[%emt 0:00:03]} 28. c4 {[%emt 0:02:10][%cal Bc3c4,Bc4c5,Bc5d6][%mdl 32]} Nb4 {[%emt 0:01:25]} 29. c5 {[%emt 0:00:53] And now Qb5+ would win.} Nd5 {[%emt 0:00:42]} 30. Nd6+ {[%emt 0:04:29]} Bxd6 {[%emt 0:01:37]} 31. cxd6 {[%emt 0:00:07]} Rc5 {[%emt 0:01:46]} 32. Qb2 {[%emt 0:01:37]} b6 {[%emt 0:00:45]} 33. Rc1 {[%emt 0:00:41] Threatens to win with Rxc5.} Rxc1+ {[%emt 0:01:49]} 34. Qxc1 {[%emt 0:00:02][%cal Rc1c8][%mdl 4096] Endgame KQ-KRN} Kd7 {[%emt 0:00:28] Against Qc8+} 35. Qxg5 {[%emt 0:01:02]} Rc8 {[%emt 0:00:02]} 36. h4 {[%emt 0:00:25]} b5 {[%emt 0:01:52]} 37. Qg7 {[%emt 0:00:30]} Rc1+ {[%emt 0:00:08]} 38. Kh2 {[%emt 0:00:07]} Rf1 {[%emt 0:00:09] White is clearly winning.} 39. Qf8 {[%emt 0:00:57] Black must now prevent Qa8.} Ne3 {[%emt 0:02:07]} 40. Qe7+ {[%emt 0:01:09]} Kc6 {[%emt 0:00:04]} 41. Qc7+ {[%emt 0:00:37]} Kd5 {[%emt 0:00:04]} 42. g4 {[%emt 0:00:35]} (42. d7 $2 {gets mated.} Ng4+ 43. Kh3 Nf2+ 44. Kh2 Rh1#) 42... Rd1 {[%emt 0:00:54]} 43. Kg3 {[%emt 0:01:54] Weighted Error Value: White=0.29 (precise) /Black=0.44} 1-0

[Event "Swiss Championship U16 2022"]
[Site "Biel"]
[Date "2022.07.19"]
[Round "3.3"]
[White "Zargarov, Mikayel"]
[Black "Rotunno, Flavio"]
[Result "1-0"]
[ECO "E05"]
[WhiteElo "1994"]
[BlackElo "1901"]
[Annotator "TA"]
[PlyCount "139"]
[EventDate "2022.07.18"]
[EventType "swiss"]
[EventCountry "SUI"]
[SourceTitle "playchess.com"]
[Source "ChessBase"]
[SourceQuality "1"]
[TimeControl "5400+30"]

{[%evp 18,139,102,80,113,108,92,91,113,89,121,122,162,165,187,180,177,189,184,181,235,247,237,234,254,245,307,132,161,134,197,143,188,194,194,192,178,109,153,141,137,123,133,124,177,162,156,129,146,55,50,45,44,25,35,0,0,0,0,0,0,0,14,8,12,0,18,18,77,77,77,0,0,0,591,998,1797,1695,2110,0,29959,29959,29971,29974,29974,29975,29975,29975,29976,29976,29976,29974,29975,0,0,0,0,0,0,0,0,0,29981,29980,29982,0,0,8,29979,29980,29980,29980,29980,29981,29981,29982,29985,29986,29989,29990,29991,29992,29996,29997]} 1. d4 {[%emt 0:00:02]} Nf6 {[%emt 0:00:06]} 2. c4 {[%emt 0:01:21]} e6 {[%emt 0:03:11]} 3. g3 {[%emt 0:00:00]} d5 {[%emt 0:01:04]} 4. Bg2 {[%emt 0:00:09]} Be7 {[%emt 0:00:04]} 5. Nf3 {[%emt 0:00:17]} O-O {[%emt 0:00:08]} 6. O-O {[%emt 0:02:33]} dxc4 {[%emt 0:01:05]} 7. Ne5 {[%emt 0:02:05]} c5 {[%emt 0:06:38]} 8. dxc5 {[%emt 0:07:23]} Qxd1 {[%emt 0:05:05]} 9. Rxd1 {[%emt 0:17:36]} Bxc5 {[%emt 0:18:03]} 10. Nc3 {[%emt 0:14:09]} Nbd7 {[%emt 0:01:50] E05: Open Catalan: 5 Nf3 Be7.} 11. Nxc4 {[%emt 0:06:11] White is much more active. The black rooks are badly placed.} Nb6 {[%emt 0:29:18]} 12. Nxb6 {[%emt 0:05:25]} Bxb6 {[%emt 0:03:25] White is better.} 13. b3 {[%emt 0:23:46]} e5 {[%emt 0:08:50] [#]} 14. Bb2 $146 {[%emt 0:09:18]} ({Predecessor:} 14. h3 Bd4 15. Bb2 Rb8 16. g4 {1-0 (16) Salimov,E (2155)-Press,H ICCF email 2014}) 14... Bg4 {[%emt 0:02:10]} 15. h3 {[%emt 0:02:01][%cal Bh2h3,Bh3h4][%mdl 32]} Bh5 {[%emt 0:00:54]} 16. g4 {[%emt 0:00:00]} (16. Bxb7 Rad8 17. g4 Bg6) 16... Bg6 {[%emt 0:12:55]} 17. Bxb7 {[%emt 0:00:00]} Rab8 {[%emt 0:00:46]} 18. Bg2 {[%emt 0:00:45]} h5 {[%emt 0:03:20]} (18... Rfd8 {was necessary.} 19. g5 Ne8) 19. g5 $18 {[%emt 0:00:40]} Nh7 {[%emt 0:00:31]} 20. h4 {[%emt 0:00:00]} f6 {[%emt 0:02:50]} 21. Nd5 {[%emt 0:02:46] Threatens to win with Ne7+.} fxg5 {[%emt 0:05:09]} 22. Nxb6 {[%emt 0:00:00]} (22. Bxe5 Bxf2+ 23. Kh1 Rbe8 $15) (22. Ne7+ $18 {and the rest is easy.} Kf7 23. Nc6) 22... axb6 {[%emt 0:03:38]} 23. hxg5 {[%emt 0:01:41]} (23. Bxe5 Rbe8 24. Bc7 gxh4) 23... Rf5 {[%emt 0:00:53]} (23... Nxg5 $16 24. Bxe5 Rbe8) 24. Rd7 {[%emt 0:00:43]} (24. Bd5+ $6 Kh8 $16) (24. Rd6 $18 Be8 25. Re6 (25. Bd5+ Kh8 $18)) 24... Rxg5 {[%emt 0:01:19]} 25. f4 $1 {[%emt 0:00:39]} Bf5 {[%emt 0:02:21]} 26. fxg5 {[%emt 0:00:00]} Bxd7 {[%emt 0:00:47]} 27. g6 {[%emt 0:00:48]} (27. Bxe5 Re8 28. Bf4 (28. Bd5+ Be6 $14) 28... Rxe2) (27. Rd1 $18 Bg4 28. Bxe5) 27... Nf8 {[%emt 0:00:35]} 28. Be4 $1 {[%emt 0:00:42]} (28. Bxe5 Re8 29. Bc7 (29. Bd5+ Be6 $14) 29... Nxg6 $16) 28... Bg4 {[%emt 0:00:35]} 29. Kf2 {[%emt 0:00:14]} (29. Bxe5 $6 Re8 30. Bd5+ Be6 $14) 29... Rd8 {[%emt 0:00:49] Against Rd1} 30. Ke3 {[%emt 0:00:43] Against Rd2} (30. Bxe5 $6 Re8 31. Bd5+ Kh8 $11) 30... Rd6 {[%emt 0:00:33]} (30... h4 $16 {keeps fighting.} 31. Rh1 (31. Bxe5 Re8 $16) 31... h3 32. Bxe5 Bc8) 31. Bxe5 {[%emt 0:00:11]} Rd8 {[%emt 0:02:18]} 32. Bd4 {[%emt 0:00:27] A strong pair of Bishops.} Re8 {[%emt 0:00:41] [#]} 33. Kd3 {[%emt 0:00:03]} ({But not} 33. Bxb6 $2 Bf5 34. a4 Bxe4 $19) ({White should play} 33. Rf1 $1 $16) 33... Bxe2+ $1 $14 {[%emt 0:00:00][%mdl 64] Decoy} 34. Kxe2 {[%emt 0:00:10]} Rxe4+ {[%emt 0:00:00][%mdl 4096] Endgame KRB-KRN} 35. Kd3 {[%emt 0:03:25]} Re6 {[%emt 0:00:36]} 36. a4 {[%emt 0:00:48]} Nxg6 {[%emt 0:00:13]} 37. b4 {[%emt 0:01:34]} Nf4+ {[%emt 0:00:39]} 38. Kc4 {[%emt 0:02:05]} Re4 {[%emt 0:00:36] ...Ne6 is the strong threat.} 39. Rd1 {[%emt 0:00:00]} h4 {[%emt 0:00:36]} 40. a5 {[%emt 0:00:00]} bxa5 {[%emt 0:00:04]} 41. bxa5 {[%emt 0:01:04] Black must now prevent a6.} Re6 {[%emt 0:01:45]} (41... Ne6 $5 42. a6 Nc7 $11) 42. Rg1 {[%emt 0:00:34]} g6 {[%emt 0:00:19]} (42... h3 $11 {keeps the balance.}) 43. Rg4 $16 {[%emt 0:00:31][%csl LRf4,LRh4]} Ne2 {[%emt 0:00:31]} 44. Rxh4 {[%emt 0:00:07]} ({Better is} 44. Bb6 $16) 44... Nxd4 $11 {[%emt 0:00:00]} 45. Rxd4 $16 {[%emt 0:00:00] aiming for Rd7. KR-KR} Re1 $2 {[%emt 0:00:44][%mdl 8192]} (45... Kg7 $11 {and Black is okay.}) 46. Kb5 $18 {[%emt 0:00:14]} Re5+ {[%emt 0:00:00]} 47. Kb6 {[%emt 0:00:39]} Re6+ {[%emt 0:00:13]} 48. Kc5 $2 {[%emt 0:00:09]} (48. Kb7 $18 {Rd7 would kill now.} Kf7 49. a6) 48... Re5+ $2 {[%emt 0:00:00][%mdl 8192]} (48... Kh7 $11) 49. Rd5 {[%emt 0:00:00]} Re1 {[%emt 0:00:19]} 50. a6 {[%emt 0:00:42]} Kf7 {[%emt 0:00:35]} 51. a7 {[%emt 0:02:02]} Re8 {[%emt 0:01:24]} 52. Kb6 {[%emt 0:00:27]} Ke6 {[%emt 0:00:39]} 53. Rc5 {[%emt 0:00:31]} Kd7 {[%emt 0:00:00]} 54. Rc7+ {[%emt 0:00:36]} Ke6 {[%emt 0:00:52]} 55. Kb7 $2 {[%emt 0:00:00]} (55. Rb7 Ra8 56. Rb8 Rxa7 57. Kxa7 g5 58. Rb5 Kf6 59. Kb6 Kg6 60. Kc5) 55... Kf5 {[%emt 0:00:51]} 56. Rc8 {[%emt 0:00:00]} Re7+ {[%emt 0:00:00]} 57. Rc7 {[%emt 0:00:00]} Re8 {[%emt 0:00:00]} 58. a8=Q {[%emt 0:00:13]} (58. Rc8 Re7+ 59. Rc7 Re8) 58... Rxa8 {[%emt 0:00:00]} 59. Kxa8 $11 {[%emt 0:00:42] White threatens Kb7 and mate. KR-KP} Kg4 $2 {[%emt 0:00:07][%mdl 8192]} (59... Ke4 $11) 60. Kb7 {[%emt 0:00:35]} g5 {[%emt 0:00:22]} 61. Kc6 $2 {[%emt 0:02:10]} (61. Rf7 {mates} Kh3 62. Kc6 g4 63. Kd5 g3 64. Ke4 g2 65. Kf3 g1=N+ 66. Kf2) 61... Kf3 $1 {[%emt 0:00:16]} 62. Rf7+ {[%emt 0:00:38]} Ke4 $2 {[%emt 0:00:10][%mdl 8192] [#] This move loses the game for Black.} (62... Ke3 $11) 63. Rg7 $1 {[%emt 0:00:03] White mates.} Kf4 {[%emt 0:00:18]} 64. Kd5 {[%emt 0:00:08]} g4 {[%emt 0:00:17]} 65. Kd4 {[%emt 0:01:17]} Kf3 {[%emt 0:01:24]} 66. Kd3 {[%emt 0:00:04]} g3 {[%emt 0:00:13]} 67. Rf7+ {[%emt 0:00:21]} Kg2 {[%emt 0:00:46]} 68. Ke2 {[%emt 0:00:37]} Kh1 {[%emt 0:01:32]} 69. Rg7 {[%emt 0:00:10]} g2 {[%emt 0:00:25]} 70. Kf2 {[%emt 0:00:00] Weighted Error Value: White=0.29 (precise) /Black=0.55} 1-0

[Event "Swiss Championship U16 2022"]
[Site "Biel"]
[Date "2022.07.19"]
[Round "3.4"]
[White "Doetsch-Thaler, Nicos"]
[Black "Schellenberg, Simon"]
[Result "1-0"]
[ECO "B01"]
[WhiteElo "1837"]
[BlackElo "1899"]
[Annotator "NA RC COMBH"]
[PlyCount "95"]
[EventDate "2022.07.18"]
[EventType "swiss"]
[EventCountry "SUI"]
[SourceTitle "playchess.com"]
[Source "ChessBase"]
[SourceQuality "1"]
[TimeControl "5400+30"]

1. e4 {[%emt 0:01:14]} d5 {[%emt 0:00:13]} 2. exd5 {[%emt 0:00:17]} Nf6 {[%emt 0:00:15]} 3. Nf3 {[%emt 0:00:17]} Nxd5 {[%emt 0:00:39]} 4. d4 {[%emt 0:00:23]} Bf5 {[%emt 0:00:39]} 5. Bd3 {[%emt 0:00:27]} Bxd3 {[%emt 0:00:00]} 6. Qxd3 {[%emt 0:01:03]} e6 {[%emt 0:02:38]} 7. O-O {[%emt 0:01:12]} c6 {[%emt 0:01:33]} 8. c4 {[%emt 0:00:22]} Nf6 {[%emt 0:01:17]} 9. Nc3 {[%emt 0:01:02]} Be7 {[%emt 0:01:05]} 10. Bf4 {[%emt 0:02:22]} O-O {[%emt 0:06:27]} 11. Rad1 {[%emt 0:03:36]} h6 {[%emt 0:11:09]} (11... Re8 $14) 12. Qe2 {[%emt 0:04:43]} Re8 {[%emt 0:02:42]} 13. Rd3 {[%emt 0:03:43]} Qa5 {[%emt 0:13:26] [#]} 14. Ne5 $1 {[%emt 0:11:53]} Bf8 {[%emt 0:04:50]} 15. Rg3 {[%emt 0:18:19]} g6 $2 {[%emt 0:17:36] [#]} (15... Nbd7 16. Bxh6 g6) 16. Qd2 $2 {[%emt 0:08:54]} (16. Nxg6 $1 {[%mdl 512]} fxg6 17. Rxg6+ Bg7 18. Bxh6) 16... Nh5 {[%emt 0:00:27]} 17. Bxh6 {[%emt 0:06:39]} Bd6 {[%emt 0:08:18]} 18. Qg5 {[%emt 0:05:24]} Nxg3 {[%emt 0:02:53]} 19. fxg3 {[%emt 0:00:20]} Bxe5 {[%emt 0:00:22]} 20. dxe5 {[%emt 0:06:10]} Nd7 {[%emt 0:04:59]} 21. Qf4 {[%emt 0:05:26]} Rf8 {[%emt 0:00:34] [#]} 22. Bxf8 {[%emt 0:02:13]} (22. Rd1 $1 $18 {[%cal Rd1d7]} Qc5+ 23. Kf1) 22... Rxf8 {[%emt 0:02:02]} 23. Re1 {[%emt 0:01:44]} Qb6+ {[%emt 0:00:30]} 24. Qf2 {[%emt 0:01:43]} Qa5 {[%emt 0:00:42]} 25. Qd4 {[%emt 0:01:37]} Qb6 {[%emt 0:00:59]} 26. Qxb6 {[%emt 0:00:00]} Nxb6 {[%emt 0:02:37]} 27. b3 {[%emt 0:02:45]} Rd8 {[%emt 0:01:52]} 28. Ne4 {[%emt 0:00:43]} Nc8 {[%emt 0:01:04]} 29. Kf2 {[%emt 0:04:46]} b6 {[%emt 0:03:11]} 30. Ke3 {[%emt 0:01:15]} c5 {[%emt 0:01:37]} 31. Rf1 {[%emt 0:01:16]} Kg7 $18 {[%emt 0:02:27]} (31... Ne7 $16) 32. Rf2 {[%emt 0:07:02]} Ne7 {[%emt 0:00:10]} 33. Nd6 {[%emt 0:00:00]} Rf8 {[%emt 0:01:02]} 34. Ke4 {[%emt 0:01:13]} a6 {[%emt 0:00:20]} 35. g4 {[%emt 0:00:47]} g5 {[%emt 0:01:23]} 36. g3 {[%emt 0:00:22]} Ng6 {[%emt 0:00:56]} 37. Rf1 {[%emt 0:00:42]} Kg8 {[%emt 0:00:24]} 38. Rh1 {[%emt 0:01:23]} f5+ {[%emt 0:00:44]} 39. gxf5 {[%emt 0:00:22]} exf5+ {[%emt 0:00:21]} 40. Nxf5 {[%emt 0:00:09]} Re8 {[%emt 0:00:18]} 41. Nh6+ {[%emt 0:00:20]} Kg7 {[%emt 0:00:12]} 42. Ng4 {[%emt 0:00:47]} Rd8 {[%emt 0:01:19]} 43. Rf1 {[%emt 0:00:25]} Rd4+ {[%emt 0:00:35]} 44. Kf5 {[%emt 0:00:18]} b5 {[%emt 0:00:44]} 45. cxb5 {[%emt 0:00:00]} axb5 {[%emt 0:00:30]} 46. Rc1 {[%emt 0:00:31]} c4 {[%emt 0:00:11]} 47. bxc4 {[%emt 0:00:08]} bxc4 {[%emt 0:00:45]} 48. Ne3 {[%emt 0:02:03]} 1-0

[Event "Swiss Championship U16 2022"]
[Site "Biel"]
[Date "2022.07.19"]
[Round "3.5"]
[White "Palmonella, Valentin"]
[Black "Knapp, Yanik"]
[Result "1/2-1/2"]
[ECO "B40"]
[WhiteElo "1778"]
[BlackElo "1675"]
[Annotator "NA RC COMBH"]
[PlyCount "69"]
[EventDate "2022.07.18"]
[EventType "swiss"]
[EventCountry "SUI"]
[SourceTitle "playchess.com"]
[Source "ChessBase"]
[SourceQuality "1"]
[TimeControl "5400+30"]

1. e4 {[%emt 0:00:03]} c5 {[%emt 0:00:08]} 2. Nf3 {[%emt 0:00:33]} e6 {[%emt 0:00:06]} 3. b3 {[%emt 0:00:09]} d5 {[%emt 0:10:55]} 4. exd5 {[%emt 0:00:33]} exd5 {[%emt 0:01:25]} 5. d4 {[%emt 0:00:28]} Nf6 {[%emt 0:05:48]} 6. Be2 {[%emt 0:06:27]} Nc6 {[%emt 0:03:45]} 7. O-O {[%emt 0:01:24]} Be6 {[%emt 0:03:15]} 8. Re1 {[%emt 0:07:54]} cxd4 {[%emt 0:05:40]} 9. Nxd4 {[%emt 0:06:40]} Nxd4 {[%emt 0:01:03]} 10. Qxd4 {[%emt 0:00:30]} Be7 {[%emt 0:04:35]} 11. Bb5+ {[%emt 0:10:03]} Nd7 {[%emt 0:08:56]} 12. Qxg7 {[%emt 0:03:06]} Bf6 {[%emt 0:09:54]} 13. Rxe6+ {[%emt 0:00:38]} fxe6 {[%emt 0:01:17]} 14. Bxd7+ {[%emt 0:00:15]} Qxd7 {[%emt 0:00:09]} 15. Qxf6 {[%emt 0:00:08]} Rf8 {[%emt 0:01:32]} 16. Qd4 {[%emt 0:03:15]} Rc8 {[%emt 0:03:26]} 17. Bh6 {[%emt 0:15:40]} Rg8 {[%emt 0:05:01]} 18. c4 {[%emt 0:10:34]} dxc4 {[%emt 0:02:48]} 19. Qxd7+ {[%emt 0:00:21]} Kxd7 {[%emt 0:00:07]} 20. bxc4 {[%emt 0:00:08]} Rxc4 {[%emt 0:00:57]} 21. Nd2 {[%emt 0:01:17]} Rc2 {[%emt 0:01:41]} 22. Nf3 {[%emt 0:08:55]} Rgc8 {[%emt 0:02:33]} 23. g3 {[%emt 0:01:06]} R8c3 {[%emt 0:04:03]} 24. Ne1 {[%emt 0:04:23]} Re2 {[%emt 0:01:16]} 25. Kf1 {[%emt 0:01:06]} Re4 {[%emt 0:00:57]} 26. Rb1 {[%emt 0:01:12]} b6 {[%emt 0:02:33]} 27. Rb2 {[%emt 0:01:40]} Rc5 {[%emt 0:02:35]} 28. Bf8 {[%emt 0:02:31]} Rc8 {[%emt 0:03:37]} 29. Bb4 {[%emt 0:01:12]} Rcc4 {[%emt 0:01:23]} 30. Nc2 {[%emt 0:01:04]} Rxc2 {[%emt 0:01:15]} 31. Rxc2 {[%emt 0:00:11]} Rxb4 {[%emt 0:00:08]} 32. Ke2 {[%emt 0:00:29]} Kd6 {[%emt 0:01:52]} 33. f4 {[%emt 0:01:23]} h5 {[%emt 0:03:34]} 34. Ke3 {[%emt 0:02:20]} Ra4 {[%emt 0:01:29]} 35. Kd3 {[%emt 0:02:14]} 1/2-1/2

[Event "Swiss Championship U16 2022"]
[Site "Biel"]
[Date "2022.07.19"]
[Round "3.6"]
[White "Hirzel, Cedric"]
[Black "Kwiatkowski, Jakub"]
[Result "1/2-1/2"]
[ECO "E05"]
[WhiteElo "1649"]
[BlackElo "1770"]
[Annotator "NA RC COMBH"]
[PlyCount "62"]
[EventDate "2022.07.18"]
[EventType "swiss"]
[EventCountry "SUI"]
[SourceTitle "playchess.com"]
[Source "ChessBase"]
[SourceQuality "1"]
[TimeControl "5400+30"]

1. d4 {[%emt 0:00:06]} Nf6 {[%emt 0:00:06]} 2. c4 {[%emt 0:00:09]} e6 {[%emt 0:00:23]} 3. g3 {[%emt 0:00:30]} d5 {[%emt 0:00:00]} 4. Nf3 {[%emt 0:00:10]} Be7 {[%emt 0:00:00]} 5. Bg2 {[%emt 0:00:01]} O-O {[%emt 0:00:07]} 6. O-O {[%emt 0:00:04]} dxc4 {[%emt 0:00:00]} 7. Qc2 {[%emt 0:00:07]} a6 {[%emt 0:00:00]} 8. a4 {[%emt 0:00:09]} Bd7 {[%emt 0:01:40]} 9. Ne5 {[%emt 0:04:24]} Nd5 {[%emt 0:01:33]} 10. Qxc4 {[%emt 0:15:27]} Bb5 {[%emt 0:15:30]} 11. Qb3 {[%emt 0:16:51]} Bc6 {[%emt 0:05:35]} 12. Rd1 {[%emt 0:04:51]} Nb4 {[%emt 0:05:00]} 13. e4 {[%emt 0:12:59]} Nd7 {[%emt 0:20:31]} 14. Ng4 {[%emt 0:09:40]} b5 {[%emt 0:00:55]} 15. a5 {[%emt 0:03:36]} Bb7 {[%emt 0:03:11]} 16. d5 {[%emt 0:09:41]} exd5 {[%emt 0:00:27]} 17. exd5 {[%emt 0:00:00]} Bc5 {[%emt 0:03:13]} 18. Bd2 {[%emt 0:03:53]} Qe7 {[%emt 0:09:08]} 19. d6 {[%emt 0:00:21]} Qe2 {[%emt 0:01:00]} 20. Bxb7 {[%emt 0:00:45]} Qxg4 {[%emt 0:02:38]} 21. Bxb4 {[%emt 0:06:06]} Rab8 {[%emt 0:02:20]} 22. Bxc5 {[%emt 0:00:00]} Nxc5 {[%emt 0:00:18]} 23. Qf3 {[%emt 0:02:14]} Qe6 {[%emt 0:00:13]} 24. Bd5 {[%emt 0:00:00]} Qxd6 {[%emt 0:00:06]} 25. Bxf7+ {[%emt 0:00:00]} Rxf7 {[%emt 0:12:09]} 26. Rxd6 {[%emt 0:00:09]} Rxf3 {[%emt 0:00:17]} 27. Rc6 {[%emt 0:01:47]} Nd3 {[%emt 0:02:36]} 28. Rxa6 {[%emt 0:04:35]} Rbf8 {[%emt 0:03:25]} 29. Re6 {[%emt 0:00:24]} Rxf2 {[%emt 0:00:30]} 30. Nc3 {[%emt 0:00:39]} Rxb2 {[%emt 0:01:03]} 31. Ne4 {[%emt 0:01:05]} Nf2 {[%emt 0:04:34]} 1/2-1/2